fUSD/lending_fUSD_20240906
["ID","MTS","AMOUNT","RATE_DAILY","PERIOD"]
[337405181,1725642638098,-2806.8,0.000149,2]
[337405182,1725642638107,-335.0061,0.000149,2]
[337405183,1725642638118,-221.61260684,0.000149,2]
[337405184,1725642638127,-998.61304144,0.000149,2]
[337405185,1725642638137,-5002.19482933,0.000149,2]
[337405186,1725642638147,-330.0106221,0.000149,2]
[337405187,1725642638156,-400.0,0.0001497,2]
[337405188,1725642638167,-400.0,0.0001497,2]
[337405189,1725642638176,-400.0,0.0001497,2]
[337405190,1725642638185,-27775.56428383,0.0001499,3]
[337405191,1725642638197,-7214.73959698,0.0001499,3]
[337405192,1725642638208,-830.76722118,0.0001499,3]
[337405193,1725642638224,-84716.48174401,0.0001499,3]
[337405194,1725642638234,-150.5,0.0001499,2]
[337405195,1725642638243,-150.5,0.0001499,2]
[337405196,1725642638253,-2626.6820942,0.00014996,2]
[337405197,1725642638262,-260.3121647,0.00014996,2]
[337405198,1725642638272,-9806.7123597,0.00014996,2]
[337405199,1725642638281,-447.87360674,0.00014996,2]
[337405200,1725642638290,-1000.0,0.00014999,2]
[337405202,1725642638299,-8500.0,0.00014999,2]
[337405204,1725642638309,-635.8192301,0.00014999,2]
[337405206,1725642638318,-2572.27876639,0.00014999,2]
[337405208,1725642638327,-500.0,0.00014999,2]
[337405210,1725642638336,-500.0,0.00014999,2]
[337405211,1725642638345,-500.0,0.00014999,2]
[337405213,1725642638354,-500.0,0.00014999,2]
[337405215,1725642638363,-500.0,0.00014999,2]
[337405217,1725642638373,-337.415803,0.00014999,2]
[337405219,1725642638382,-500.0,0.00014999,2]
[337405221,1725642638391,-500.0,0.00014999,2]
[337405223,1725642638400,-500.0,0.00014999,2]
[337405225,1725642638411,-500.0,0.00014999,2]
[337405227,1725642638421,-513.06392619,0.00014999,2]
[337405229,1725642638431,-500.0,0.00014999,2]
[337405231,1725642638440,-494.04001195,0.00014999,2]
[337405232,1725642638449,-500.0,0.00014999,2]
[337405234,1725642638458,-500.0,0.00014999,2]
[337405236,1725642638467,-442.67823288,0.00014999,2]
[337405238,1725642638476,-500.0,0.00014999,2]
[337405240,1725642638486,-500.0,0.00014999,2]
[337405242,1725642638495,-500.0,0.00014999,2]
[337405243,1725642638504,-500.0,0.00014999,2]
[337405244,1725642638514,-500.0,0.00014999,2]
[337405245,1725642638524,-500.0,0.00014999,2]
[337405246,1725642638533,-500.0,0.00014999,2]
[337405247,1725642638542,-500.0,0.00014999,2]
[337405248,1725642638552,-591.0,0.00015,2]
[337405249,1725642638561,-391690.90762823,0.00015,2]
[337405250,1725642638573,-509.16789362,0.00015,2]
[337405251,1725642638588,-18943.76812934,0.00015,2]
[337405252,1725642638599,-8489.79363186,0.00015,2]
[337405253,1725642638610,-1294.19060398,0.00015,2]
[337405254,1725642638625,-1019.83248483,0.00015,2]
[337405255,1725642638636,-2613.31048833,0.00015,2]
[337405309,1725642640005,-478.75263346,0.00015,2]
[337405310,1725642640017,-1663.5002,0.00015,2]
[337405311,1725642640029,-2266.00000008,0.00015,2]
[337405312,1725642640067,-2303.5,0.00015,2]
[337405313,1725642640079,-844.59940541,0.00015,2]
[337405314,1725642640148,-300.14566,0.00015,2]
[337405315,1725642640161,-889.49999995,0.00015,2]
[337405316,1725642640173,-998.56,0.00015,2]
[337405317,1725642640184,-400.075,0.00015,2]
[337405318,1725642640195,-476.45777715,0.00015,2]
[337405319,1725642640207,-345.53481941,0.00015,2]
[337405320,1725642640248,-1986.34492326,0.00015,2]
[337405321,1725642640260,-593.76441896,0.00015,2]
[337405322,1725642640271,-540.84141,0.00015,2]
[337405323,1725642640283,-380.69000001,0.00015,2]
[337405324,1725642640484,-428931.35066087,0.00015,2]
[337405325,1725642640494,-46196.21924591,0.00015,2]
[337405326,1725642640510,-578.06080476,0.00015,2]
[337405327,1725642640522,-11150.54951264,0.00015,2]
[337405328,1725642640533,-304.33735203,0.00015,2]
[337405329,1725642640545,-1324.73356299,0.00015,2]
[337405330,1725642640556,-660.549,0.00015,2]
[337405331,1725642640568,-602.7973578,0.00015,2]
[337405332,1725642640580,-33598.95918226,0.00015,2]
[337405333,1725642640591,-38721.42066455,0.00015,2]
[337405334,1725642640602,-6847.0132508,0.00015,2]
[337405335,1725642640614,-83198.20398924,0.00015,2]
[337405336,1725642640625,-6789.43719402,0.00015,2]
[337405345,1725642643213,-336.84091214,0.00014891,2]
[337405346,1725642643234,-1643.41474406,0.00014891,2]
[337405347,1725642643243,-1394.73960727,0.00015,2]
[337405348,1725642643254,-13190.16168377,0.00015,2]
[337405349,1725642643265,-1202.82442801,0.00015,2]
[337405350,1725642643276,-1799.77926749,0.00015,2]
[337405351,1725642643287,-500.57827625,0.00015,2]
[337405375,1725642646033,-5266.159,0.00015,2]
[337405377,1725642646045,-595.8999,0.00015,2]
[337405378,1725642646262,-506.70576789,0.00015,2]
[337405379,1725642646274,-1588.93093801,0.00015,2]
[337405380,1725642646286,-2008.43148739,0.00015,2]
[337405382,1725642914142,210.32,0.00011854,2]
[337405389,1725643065551,-921.28055295,0.00013305,2]
[337405390,1725643065575,-296.47950284,0.0001331,2]
[337405391,1725643065598,-172.85,0.0001341,2]
[337405392,1725643065621,-1000.0,0.0001357,2]
[337405393,1725643065644,-445.61,0.0001357,2]
[337405394,1725643065664,-843.85,0.000136,2]
[337405395,1725643065687,-250.0,0.00013684,2]
[337405396,1725643065880,-156.45,0.00013699,2]
[337405397,1725643065906,-151.99,0.0001373,2]
[337405398,1725643065928,-250.0,0.00013858,2]
[337405399,1725643065953,-428.82,0.00013909,2]
[337405400,1725643065980,-448.89,0.0001396,2]
[337405401,1725643066001,-299.99,0.0001396,2]
[337405402,1725643066021,-887.81,0.0001396,2]
[337405403,1725643066042,-6593.71,0.0001396,2]
[337405404,1725643066065,-163.44,0.00013996,2]
[337405405,1725643076830,717.27,0.000136,2]
[337405406,1725643108729,500.0,0.0001397,2]
[337405407,1725643142791,200.0,0.0001392,2]
[337405408,1725643198888,176.3,0.00013905,2]
[337405409,1725643201424,609.68,0.000136,2]
[337405410,1725643210937,157.7,0.00013699,2]
[337405411,1725643254660,250.0,0.00013893,2]
[337405412,1725643285517,200.0,0.00013923,2]
[337405413,1725643288350,8877.87994421,0.00013923,2]
[337405414,1725643288375,8642.15005579,0.00013923,2]
[337405415,1725643300962,1500.0,0.00013937,2]
[337405416,1725643327415,518.23,0.000136,2]
[337405417,1725643335883,2751.0,0.00013934,2]
[337405418,1725643357801,367.56,0.00013948,2]
[337405419,1725643424056,239.54,0.00012061,2]
[337405420,1725643452374,440.5,0.000136,2]
[337405421,1725643464842,5204.72355678,0.00013948,5]
[337405422,1725643508660,5336.29638743,0.00013,2]
[337405423,1725643508684,25000.0,0.00013,2]
[337405432,1725643744337,305.77,0.00010959,2]
[337405450,1725643832020,-167.42,0.0001299,2]
[337405451,1725643832030,-300.0,0.00012996,2]
[337405452,1725643832040,-150.0,0.00012996,2]
[337405454,1725643832049,-1569.23209013,0.00012997,2]
[337405456,1725643832060,-8774.31523528,0.00012997,2]
[337405458,1725643832081,-1092.85082834,0.00012997,2]
[337405459,1725643832101,-536.83568415,0.00012997,2]
[337405460,1725643832112,-4548.09399337,0.00012997,2]
[337405461,1725643832124,-39708.8931872,0.00012997,2]
[337405462,1725643832137,-51819.68675704,0.00012997,2]
[337405463,1725643832148,-500.0,0.00012999,2]
[337405464,1725643832157,-500.0,0.00012999,2]
[337405465,1725643832167,-500.0,0.00012999,2]
[337405466,1725643832177,-500.0,0.00012999,2]
[337405467,1725643832186,-500.0,0.00012999,2]
[337405468,1725643832195,-500.0,0.00012999,2]
[337405469,1725643832204,-500.0,0.00012999,2]
[337405470,1725643832217,-500.0,0.00012999,2]
[337405471,1725643832227,-439.82899562,0.00012999,2]
[337405472,1725643832237,-500.0,0.00012999,2]
[337405473,1725643832246,-219.69522359,0.00012999,2]
[337405474,1725643832255,-500.0,0.00012999,2]
[337405475,1725643832265,-353.83062472,0.00012999,2]
[337405476,1725643832275,-500.0,0.00012999,2]
[337405477,1725643832285,-425.91505848,0.00012999,2]
[337405478,1725643832294,-500.0,0.00012999,2]
[337405479,1725643832303,-500.0,0.00012999,2]
[337405480,1725643832313,-500.0,0.00012999,2]
[337405481,1725643832322,-500.0,0.00012999,2]
[337405482,1725643832332,-382.39831904,0.00012999,2]
[337405483,1725643832343,-500.0,0.00012999,2]
[337405484,1725643832353,-500.0,0.00012999,2]
[337405485,1725643832362,-500.0,0.00012999,2]
[337405486,1725643832372,-500.0,0.00012999,2]
[337405487,1725643832382,-500.0,0.00012999,2]
[337405488,1725643832391,-500.0,0.00012999,2]
[337405489,1725643832400,-500.0,0.00012999,2]
[337405490,1725643832410,-500.0,0.00012999,2]
[337405491,1725643832419,-129561.9555367,0.00013,2]
[337405492,1725643832431,-302.54053659,0.00013,2]
[337405494,1725643832443,-451024.82388248,0.00013,2]
[337405495,1725643832455,-13608.16000001,0.00013,2]
[337405496,1725643832466,-6005.0,0.00013,2]
[337405497,1725643832477,-7211.0,0.00013,2]
[337405498,1725643832489,-486.59595781,0.00013,2]
[337405510,1725643832875,-854.16488114,0.00013,2]
[337405511,1725643832886,-686.70513767,0.00013,2]
[337405512,1725643832898,-1132.38722525,0.00013,2]
[337405513,1725643832909,-428.45648914,0.00013,2]
[337405514,1725643832920,-711.01118688,0.00013,2]
[337405515,1725643832931,-1827.91072361,0.00013,2]
[337405516,1725643832943,-69105.87262194,0.00013,2]
[337405517,1725643832955,-835.76890851,0.00013,2]
[337405518,1725643832966,-62226.96645343,0.00013,2]
[337405527,1725643838181,-291.61368002,0.00013,2]
[337405528,1725643838294,-950746.63891802,0.00013,2]
[337405529,1725643838352,-6186.18,0.00013,2]
[337405530,1725643838412,-1264.43557993,0.00013,2]
[337405531,1725643838425,-545.50301236,0.00013,2]
[337405532,1725643838472,-2644.17619719,0.00013,2]
[337405538,1725643840065,-713.1118096,0.00013,2]
[337405539,1725643840076,-1633.807092,0.00013,2]
[337405540,1725643840087,-318.98500006,0.00013,2]
[337405541,1725643840103,-272.89419,0.00013,2]
[337405542,1725643840135,-1539.999995,0.00013,2]
[337405543,1725643840149,-29872.41132061,0.00013,2]
[337405544,1725643840162,-1607.31148985,0.00013,2]
[337405545,1725643840173,-435.92970156,0.00013,2]
[337405546,1725643840219,-13312.02316349,0.00013,2]
[337405547,1725643840428,-1505.04594099,0.00013,2]
[337405548,1725643840440,-5859.46811615,0.00013,2]
[337405549,1725643840451,-6564.8223725,0.00013,2]
[337405671,1725643843526,-213912.22852718,0.00013,2]
[337405672,1725643843536,-1231.86699603,0.00013198,2]
[337405673,1725643843545,-461.62,0.00013467,2]
[337405674,1725643843554,-6796.57480447,0.000135,2]
[337405675,1725643843564,-500.0,0.00013541,2]
[337405676,1725643843574,-200.0,0.00013561,2]
[337405677,1725643843583,-374.42,0.000136,2]
[337405678,1725643843594,-499.99,0.00013613,2]
[337405679,1725643843603,-150.99,0.00013613,2]
[337405680,1725643843612,-286.74,0.00013613,2]
[337405681,1725643843622,-194.75,0.00013613,2]
[337405682,1725643843631,-337.13,0.0001364,30]
[337405683,1725643843640,-348.87,0.00013649,2]
[337405684,1725643843649,-200.0,0.00013699,2]
[337405685,1725643843658,-157.7,0.00013699,2]
[337405686,1725643843667,-3777.07,0.00013748,2]
[337405687,1725643843677,-9999.99,0.00013748,2]
[337405688,1725643843686,-175.65,0.00013783,2]
[337405689,1725643843695,-569.44596041,0.00014,2]
[337405690,1725643843704,-3303.61314951,0.00014011,7]
[337405691,1725643843714,-153.11,0.00014032,2]
[337405692,1725643843723,-250.0,0.00014035,2]
[337405693,1725643843732,-1899.0,0.000142,2]
[337405694,1725643843742,-552.0,0.000142,2]
[337405695,1725643843751,-1922.0,0.000142,2]
[337405696,1725643843760,-248.0,0.000142,2]
[337405697,1725643843769,-3341.0,0.000142,2]
[337405698,1725643843778,-805.0,0.000142,2]
[337405699,1725643843787,-1134.0,0.000142,2]
[337405700,1725643843796,-1260.0,0.000142,2]
[337405701,1725643843806,-1546.0,0.000142,2]
[337405702,1725643843815,-150.0,0.000142,2]
[337405703,1725643843824,-624.0,0.000142,2]
[337405704,1725643843833,-5855.0,0.000142,2]
[337405705,1725643843842,-447.0,0.000142,2]
[337405706,1725643843852,-1144.0,0.000142,2]
[337405707,1725643843861,-207.728,0.000142,2]
[337405708,1725643843870,-13467.0,0.000142,2]
[337405709,1725643843880,-420.0,0.00014253,2]
[337405710,1725643843890,-239.54,0.00014325,2]
[337405711,1725643843899,-1486.14,0.00014377,2]
[337405712,1725643843908,-434.526353,0.00014521,2]
[337405713,1725643843917,-152.747,0.00014543,2]
[337405714,1725643843927,-421.20154084,0.00014585,2]
[337405715,1725643843936,-154.45,0.00014828,2]
[337405716,1725643843945,-417.76402,0.0001485,2]
[337405717,1725643843955,-682.2283,0.00014897,2]
[337405718,1725643843964,-7500.0,0.00014897,2]
[337405719,1725643843973,-456.9474,0.00014897,2]
[337405720,1725643843982,-5133.84912942,0.00014898,2]
[337405721,1725643843991,-5133.84912938,0.00014898,2]
[337405722,1725643844001,-5133.84912938,0.00014898,2]
[337405723,1725643844010,-5133.84912938,0.00014899,2]
[337405724,1725643844019,-5133.84912938,0.00014899,2]
[337405725,1725643844028,-5133.84912938,0.00014899,2]
[337405726,1725643844037,-5133.84912938,0.00014899,2]
[337405727,1725643844046,-5133.84912938,0.000149,2]
[337405728,1725643844055,-5133.84912938,0.000149,2]
[337405729,1725643844064,-2071.8715,0.000149,2]
[337405730,1725643844074,-185.73578068,0.000149,2]
[337405731,1725643844083,-162.53833169,0.000149,2]
[337405732,1725643844092,-362.53464388,0.000149,2]
[337405733,1725643844103,-5133.84912938,0.000149,2]
[337405734,1725643844112,-335.0061,0.000149,2]
[337405735,1725643844122,-167.42,0.0001499,2]
[337405736,1725643844130,-167.42,0.0001499,2]
[337405737,1725643844143,-5021.8894652,0.00014998,2]
[337405738,1725643844152,-114977.8028773,0.00014998,2]
[337405739,1725643844161,-3742.97665061,0.00014998,2]
[337405740,1725643844170,-3007.84703718,0.00014999,3]
[337405741,1725643844180,-1038.42986721,0.00014999,2]
[337405742,1725643844189,-345.33034102,0.00014999,2]
[337405743,1725643844198,-5767.44681204,0.00014999,2]
[337405744,1725643844207,-501.0,0.00015,2]
[337405745,1725643844217,-4682.31805945,0.00015,2]
[337405746,1725643844229,-1503.0,0.00015,2]
[337405747,1725643844240,-382.92113158,0.00015,2]
[337405748,1725643844250,-549.41434972,0.00015,2]
[337405749,1725643844261,-603.56506181,0.00015,2]
[337405750,1725643844271,-642.70249532,0.00015,2]
[337405751,1725643844282,-1109.25964547,0.00015,2]
[337405752,1725643844293,-4004.27565893,0.00015,2]
[337405753,1725643844303,-22559.95666991,0.00015,2]
[337405754,1725643922299,237.15,0.00011492,2]
[337405755,1725644109533,750.0,0.00011,2]
[337405771,1725644254540,152.58,0.00010959,2]
[337405772,1725644435330,395.44,0.00011572,2]
[337405774,1725644798024,1210.86,0.00013376,2]
[337405775,1725644881508,23241.12,0.0001337,2]
[337405776,1725644881530,658.88,0.0001337,2]
[337405805,1725645032454,-250.0,0.00013417,2]
[337405806,1725645032464,-150.0,0.00013452,2]
[337405807,1725645032477,-272.3424,0.00013455,2]
[337405808,1725645032489,-165.6576,0.00013455,2]
[337405809,1725645032499,-163.45,0.00013456,2]
[337405810,1725645032512,-160.0,0.00013469,2]
[337405811,1725645032521,-171.0,0.00013472,2]
[337405812,1725645032540,-500.0,0.00013477,2]
[337405813,1725645032550,-250.0,0.00013485,2]
[337405814,1725645032560,-230.27365888,0.00013488,2]
[337405815,1725645032569,-250.0,0.00013488,2]
[337405816,1725645032581,-3287.74287472,0.00013488,2]
[337405817,1725645032593,-3124.03712528,0.00013488,2]
[337405818,1725645032602,-1052.46,0.00013554,2]
[337405819,1725645032611,-2771.67,0.00013554,2]
[337405820,1725645032620,-157.05,0.00013577,2]
[337405821,1725645032629,-499.99,0.00013577,2]
[337405822,1725645032639,-1517.42,0.00013577,2]
[337405823,1725645032648,-157.05,0.00013594,2]
[337405824,1725645032657,-157.05,0.00013611,2]
[337405825,1725645032667,-157.05,0.00013628,2]
[337405826,1725645032676,-163.85,0.00013635,2]
[337405827,1725645032685,-157.05,0.00013645,2]
[337405828,1725645032695,-150.0,0.00013653,2]
[337405829,1725645032705,-320.27,0.00013654,30]
[337405830,1725645032714,-840.0,0.00013665,2]
[337405831,1725645032724,-159.94,0.00013699,2]
[337405832,1725645032733,-500.0,0.00013699,2]
[337405833,1725645032743,-2751.0,0.00013699,2]
[337405834,1725645032753,-195.96,0.00013699,2]
[337405835,1725645032763,-153.81,0.00013699,2]
[337405836,1725645032772,-200.0,0.00013699,2]
[337405837,1725645032785,-467.94,0.000137,2]
[337405838,1725645032795,-173.12,0.00013744,2]
[337405839,1725645032804,-395.44,0.00013836,2]
[337405840,1725645032814,-500.0,0.00013867,2]
[337405841,1725645032823,-152.747,0.00013867,2]
[337405842,1725645032833,-391.073717,0.00013973,2]
[337405843,1725645032843,-18518.463,0.00014131,2]
[337405844,1725645032852,-31747.0,0.000142,2]
[337405845,1725645032862,-292.5487,0.00014231,2]
[337405846,1725645032871,-216.30053767,0.0001432,2]
[337405847,1725645032880,-1546.0,0.00014331,2]
[337405848,1725645032890,-447.0,0.00014331,2]
[337405849,1725645032900,-624.0,0.00014331,2]
[337405850,1725645032909,-1260.0,0.00014331,2]
[337405851,1725645032919,-169.143,0.00014331,2]
[337405852,1725645032929,-811.0,0.00014331,2]
[337405853,1725645032938,-680.741,0.00014331,2]
[337405854,1725645032948,-931.647,0.00014331,2]
[337405855,1725645032958,-552.0,0.00014331,2]
[337405856,1725645032967,-1900.0,0.00014331,2]
[337405857,1725645032977,-1126.0,0.00014331,2]
[337405858,1725645032986,-3341.0,0.00014331,2]
[337405859,1725645032995,-248.0,0.00014331,2]
[337405860,1725645033005,-1922.0,0.00014331,2]
[337405861,1725645033015,-805.0,0.00014331,2]
[337405862,1725645033025,-150.0,0.00014331,2]
[337405863,1725645033040,-1144.0,0.00014331,2]
[337405864,1725645033056,-5855.0,0.00014331,2]
[337405865,1725645033066,-150.0,0.00014331,2]
[337405866,1725645033076,-1079.0,0.00014331,2]
[337405867,1725645033086,-159.94,0.00014384,2]
[337405868,1725645033096,-153.81,0.00014384,2]
[337405869,1725645033107,-150.26,0.00014407,2]
[337405870,1725645033116,-213.9214,0.00014542,2]
[337405871,1725645033126,-421.17850793,0.00014573,2]
[337405872,1725645033135,-152.747,0.00014595,2]
[337405873,1725645033146,-284.19,0.00014607,2]
[337405874,1725645033156,-284.19,0.00014611,2]
[337405875,1725645033166,-284.19,0.00014615,2]
[337405876,1725645033175,-284.19,0.00014619,2]
[337405877,1725645033185,-284.19,0.00014623,2]
[337405878,1725645033195,-284.19,0.00014627,2]
[337405879,1725645033204,-284.19,0.0001463,2]
[337405880,1725645033214,-284.19,0.00014634,2]
[337405881,1725645033224,-284.19,0.00014638,2]
[337405882,1725645033233,-284.19,0.00014642,2]
[337405883,1725645033243,-284.19,0.00014646,2]
[337405884,1725645033253,-284.19,0.0001465,2]
[337405885,1725645033262,-284.19,0.00014653,2]
[337405886,1725645033272,-284.19,0.00014657,2]
[337405887,1725645033288,-284.19,0.00014661,2]
[337405888,1725645033298,-284.19,0.00014665,2]
[337405889,1725645033308,-284.19,0.00014669,2]
[337405890,1725645033317,-284.19,0.00014673,2]
[337405891,1725645033326,-284.19,0.00014676,2]
[337405892,1725645033336,-284.19,0.0001468,2]
[337405893,1725645033345,-1093.24872676,0.000147,2]
[337405894,1725645033355,-255.0,0.00014772,2]
[337405895,1725645033364,-150.0,0.00014792,2]
[337405896,1725645033374,-500.0,0.00014794,2]
[337405897,1725645033384,-500.0,0.00014794,2]
[337405898,1725645033394,-500.0,0.00014794,2]
[337405899,1725645033404,-500.0,0.00014794,2]
[337405900,1725645033413,-500.0,0.00014794,2]
[337405901,1725645033423,-500.0,0.00014794,2]
[337405902,1725645033433,-500.0,0.00014794,2]
[337405903,1725645033442,-500.0,0.00014794,2]
[337405904,1725645033451,-500.0,0.00014794,2]
[337405905,1725645033461,-499.99999999,0.00014794,2]
[337405906,1725645033470,-500.0,0.00014794,2]
[337405907,1725645033480,-500.0,0.00014794,2]
[337405908,1725645033492,-423.70084367,0.00014794,2]
[337405909,1725645033502,-500.0,0.00014794,2]
[337405910,1725645033512,-500.0,0.00014794,2]
[337405911,1725645033522,-500.0,0.00014794,2]
[337405912,1725645033538,-500.0,0.00014794,2]
[337405913,1725645033548,-500.0,0.00014794,2]
[337405914,1725645033557,-500.0,0.00014794,2]
[337405915,1725645033567,-500.0,0.00014794,2]
[337405916,1725645033577,-500.0,0.00014794,2]
[337405917,1725645033587,-500.0,0.00014794,2]
[337405918,1725645033596,-500.0,0.00014794,2]
[337405919,1725645033606,-500.0,0.00014794,2]
[337405920,1725645033615,-500.0,0.00014794,2]
[337405921,1725645033626,-500.0,0.00014794,2]
[337405922,1725645033635,-500.0,0.00014794,2]
[337405923,1725645033645,-500.0,0.00014794,2]
[337405924,1725645033655,-500.0,0.00014794,2]
[337405925,1725645033665,-500.0,0.00014794,2]
[337405926,1725645033675,-500.0,0.00014794,2]
[337405927,1725645033684,-500.0,0.00014794,2]
[337405928,1725645033694,-397.05642241,0.00014794,2]
[337405929,1725645033704,-500.0,0.00014794,2]
[337405930,1725645033713,-500.0,0.00014794,2]
[337405931,1725645033723,-500.0,0.00014794,2]
[337405932,1725645033733,-500.0,0.00014794,2]
[337405933,1725645033743,-500.0,0.00014794,2]
[337405934,1725645033752,-500.0,0.00014794,2]
[337405935,1725645033763,-500.0,0.00014794,2]
[337405936,1725645033773,-500.0,0.00014794,2]
[337405937,1725645033786,-210.14474592,0.00014794,2]
[337405938,1725645033796,-500.0,0.00014794,2]
[337405939,1725645033806,-500.0,0.00014794,2]
[337405940,1725645033816,-500.0,0.00014794,2]
[337405941,1725645033826,-85.9023438,0.00014794,2]
[337405942,1725645033840,-414.0976562,0.00014794,2]
[337405943,1725645033849,-500.0,0.00014794,2]
[337405944,1725645033859,-500.0,0.00014794,2]
[337405945,1725645033869,-500.0,0.00014794,2]
[337405946,1725645033878,-500.00000002,0.00014794,2]
[337405947,1725645033887,-500.0,0.00014794,2]
[337405948,1725645033896,-500.0,0.00014794,2]
[337405949,1725645033905,-500.0,0.00014794,2]
[337405950,1725645033915,-500.0,0.00014794,2]
[337405951,1725645033924,-289.55,0.00014794,2]
[337405952,1725645033933,-500.0,0.00014794,2]
[337405953,1725645033943,-275.72,0.00014794,2]
[337405954,1725645033952,-500.0,0.00014794,2]
[337405955,1725645033962,-566.15,0.00014794,2]
[337405956,1725645033971,-413.78437676,0.00014794,2]
[337405957,1725645033983,-86.21562324,0.00014794,2]
[337405958,1725645033993,-369.3,0.00014794,2]
[337405959,1725645034002,-1752.1052311,0.00014799,2]
[337405960,1725645036016,-391.073717,0.00014795,2]
[337405961,1725645036025,-246.63039217,0.00014799,2]
[337405962,1725645036042,-501.26437673,0.00014799,2]
[337405963,1725645036051,-866.31343956,0.000148,2]
[337405964,1725645036062,-363.76455997,0.000148,2]
[337405965,1725645036073,-4054.21370047,0.000148,2]
[337405966,1725645036084,-171.2219,0.000148,2]
[337405967,1725645036093,-296.63057226,0.000148,2]
[337405968,1725645036104,-7203.36942774,0.000148,2]
[337405969,1725645036113,-181.5561381,0.000148,2]
[337405970,1725645036124,-1299.333284,0.000148,2]
[337405971,1725645036135,-24.38760674,0.000148,2]
[337405972,1725645036144,-620.06278596,0.00014803,2]
[337405973,1725645036155,-256.33991671,0.00014803,2]
[337405974,1725645036167,-476.31470132,0.00014803,2]
[337405975,1725645036176,-1500.0,0.00014804,2]
[337405976,1725645036185,-1505.2770288,0.00014814,2]
[337405977,1725645036195,-150.0,0.00014822,2]
[337405978,1725645036204,-150.0,0.00014826,2]
[337405979,1725645036213,-1505.2770288,0.00014829,2]
[337405980,1725645036223,-1505.2770288,0.00014843,2]
[337405981,1725645036232,-1505.2770288,0.00014857,2]
[337405982,1725645036241,-1381.24681286,0.00014871,2]
[337405983,1725645036253,-124.03021594,0.00014871,2]
[337405984,1725645036263,-349.0,0.00014879,2]
[337405985,1725645036272,-493.18644875,0.00014886,2]
[337405986,1725645036284,-741.8811006,0.00014886,2]
[337405987,1725645036520,-270.20947945,0.00014886,2]
[337405988,1725645036529,-514.13403141,0.00014888,2]
[337405989,1725645036543,-3406.03390733,0.00014888,2]
[337405990,1725645036555,-9029.96963119,0.00014888,2]
[337405991,1725645036571,-5373.36897696,0.00014888,2]
[337405992,1725645036583,-2031.63252722,0.00014888,2]
[337405993,1725645036594,-5236.44719773,0.00014888,2]
[337405995,1725645038343,-902.63081299,0.00014888,2]
[337405996,1725645038362,-2116.2561326,0.00014888,2]
[337405997,1725645038374,-40857.96388469,0.00014888,2]
[337405998,1725645038455,-6671.04362498,0.00014888,2]
[337405999,1725645038477,-764744.24840198,0.00014888,2]
[337406000,1725645038489,-576.87446552,0.00014888,2]
[337406001,1725645038503,-4530.42838448,0.00014888,2]
[337406002,1725645038515,-301.74413659,0.00014888,2]
[337406003,1725645038527,-918.803945,0.00014888,2]
[337406004,1725645038573,-518.4720565,0.00014888,2]
[337406005,1725645038584,-250.485,0.00014888,2]
[337406006,1725645038596,-2698.3,0.00014888,2]
[337406007,1725645038607,-615.002,0.00014888,2]
[337406020,1725645040327,-425.73507072,0.00013433,2]
[337406021,1725645040337,-293.53256365,0.00014888,2]
[337406022,1725645040349,-395.92311807,0.00014888,2]
[337406023,1725645040424,-1081.58304,0.00014888,2]